bitfinex/quotes_BTCUSD_20240729
["timestamp","ask_amount","ask_price","bid_price","bid_amount"]
[1722236317171,0.065912,69779.0,69778.0,0.28952653]
[1722236317172,0.061912,69779.0,69778.0,0.28952653]
[1722236317380,0.061912,69779.0,69778.0,0.25477753]
[1722236317381,0.02349557,69779.0,69778.0,0.25477753]
[1722236317578,0.02349557,69779.0,69778.0,0.48407553]
[1722236317771,0.02649557,69779.0,69778.0,0.48407553]
[1722236317982,0.02849557,69779.0,69778.0,0.48407553]
[1722236318584,0.006,69779.0,69778.0,0.48407553]
[1722236318786,0.003,69779.0,69778.0,0.71337353]
[1722236319034,0.003,69779.0,69778.0,0.48407553]
[1722236319956,0.003,69779.0,69778.0,0.25477753]
[1722236320158,0.006,69779.0,69778.0,0.25477753]
[1722236320337,0.007,69779.0,69778.0,0.25777753]
[1722236320987,0.004,69779.0,69778.0,0.25777753]
[1722236321266,0.007,69779.0,69778.0,0.25777753]
[1722236321558,0.004,69779.0,69778.0,0.25777753]
[1722236321799,0.02649557,69779.0,69778.0,0.48707553]
[1722236322191,0.02449557,69779.0,69778.0,0.48707553]
[1722236322548,0.002,69779.0,69778.0,0.48707553]
[1722236323293,0.002,69780.0,69779.0,0.343942]
[1722236323449,0.005,69780.0,69779.0,0.343942]
[1722236323651,0.002,69780.0,69779.0,0.341942]
[1722236324352,0.002,69780.0,69779.0,0.340942]
[1722236324751,0.005,69780.0,69779.0,0.340942]
[1722236324981,0.002,69780.0,69779.0,0.340942]
[1722236325299,0.005,69780.0,69779.0,0.339942]
[1722236325480,0.002,69780.0,69779.0,0.339942]
[1722236325681,0.005,69780.0,69779.0,0.339942]
[1722236325856,0.002,69780.0,69779.0,0.339942]
[1722236326063,0.006,69780.0,69779.0,0.124647]
[1722236327116,0.007,69780.0,69779.0,0.128647]
[1722236327317,0.04758882,69780.0,69779.0,0.128647]
[1722236327496,0.02509327,69780.0,69779.0,0.128647]
[1722236327895,0.02409327,69780.0,69779.0,0.014]
[1722236328095,0.006,69780.0,69779.0,0.014]
[1722236328338,0.007,69780.0,69779.0,0.014]
[1722236328538,0.06794227,69780.0,69779.0,0.014]
[1722236328984,0.18258827,69780.0,69779.0,0.014]
[1722236329402,0.1397343,69780.0,69779.0,0.014]
[1722236329601,0.43230726,69780.0,69779.0,0.014]
[1722236329898,0.20401526,69780.0,69779.0,0.014]
[1722236330122,0.1397343,69780.0,69779.0,0.014]
[1722236330430,0.16123024,69780.0,69779.0,0.014]
[1722236330804,0.0250883,69780.0,69779.0,0.014]
[1722236331015,0.1397343,69780.0,69779.0,0.014]
[1722236331241,0.121646,69780.0,69779.0,0.014]
[1722236331474,0.13957835,69780.0,69779.0,0.014]
[1722236332334,0.2252863,69780.0,69779.0,0.014]
[1722236333450,0.13971966,69780.0,69779.0,0.014]
[1722236333651,0.13971966,69780.0,69779.0,0.014924]
[1722236334055,0.16305576,69780.0,69779.0,0.014924]
[1722236334768,0.16295355,69780.0,69779.0,0.014924]
[1722236334987,0.14045745,69780.0,69779.0,0.014924]
[1722236337139,0.14048056,69780.0,69779.0,0.014924]
[1722236337680,0.14048056,69780.0,69779.0,0.097924]
[1722236338118,0.14045862,69780.0,69779.0,0.097924]
[1722236338269,0.14045861,69780.0,69779.0,0.097924]
[1722236339774,0.36975061,69780.0,69779.0,0.097924]
[1722236339985,0.36975061,69780.0,69779.0,0.014924]
[1722236340183,0.36875061,69780.0,69779.0,0.014924]
[1722236340389,0.14045861,69780.0,69779.0,0.014924]
[1722236340808,0.122486,69780.0,69779.0,0.014924]
[1722236341031,0.14041521,69780.0,69779.0,0.014924]
[1722236341228,0.36970721,69780.0,69779.0,0.014924]
[1722236342440,0.39220347,69780.0,69779.0,0.014924]
[1722236342984,0.36970721,69780.0,69779.0,0.014924]
[1722236343266,0.59899921,69780.0,69779.0,0.014924]
[1722236343463,0.351778,69780.0,69779.0,0.014924]
[1722236343671,0.36864962,69780.0,69779.0,0.014924]
[1722236344047,0.350778,69780.0,69779.0,0.014924]
[1722236344246,0.36887279,69780.0,69779.0,0.014924]
[1722236345039,0.59916479,69780.0,69779.0,0.014924]
[1722236345232,0.36887279,69780.0,69779.0,0.014924]
[1722236346256,0.39136925,69780.0,69779.0,0.014924]
[1722236346506,0.72701783,69780.0,69779.0,0.014924]
[1722236346713,0.72693777,69780.0,69779.0,0.014924]
[1722236347011,0.72793777,69780.0,69779.0,0.014924]
[1722236347244,0.36978383,69780.0,69779.0,0.014924]
[1722236347451,0.02584583,69780.0,69779.0,0.159824]
[1722236347622,0.02584583,69780.0,69779.0,0.355571]
[1722236347862,0.02084583,69780.0,69779.0,0.814161]
[1722236348404,0.04579247,69780.0,69779.0,1.188456]
[1722236348760,0.00284,69780.0,69779.0,1.188456]
[1722236348968,0.00284,69780.0,69779.0,1.091456]
[1722236349283,0.00184,69780.0,69779.0,1.091456]
[1722236349495,0.04479247,69780.0,69779.0,1.091456]
[1722236349681,0.00284,69780.0,69779.0,1.091456]
[1722236349879,0.02533342,69780.0,69779.0,1.091456]
[1722236350284,0.00284,69780.0,69779.0,1.091456]
[1722236350534,0.00384,69780.0,69779.0,1.091456]
[1722236351168,0.00284,69780.0,69779.0,1.08601226]
[1722236352149,0.00284,69780.0,69779.0,1.18301226]
[1722236352556,0.00284,69780.0,69779.0,1.10001226]
[1722236352938,0.00284,69780.0,69779.0,1.08601226]
[1722236353372,0.00284,69780.0,69779.0,1.10001226]
[1722236354083,0.00284,69780.0,69779.0,1.05201226]
[1722236354258,0.04680123,69780.0,69779.0,0.51042226]
[1722236354461,0.08976246,69780.0,69779.0,0.51232226]
[1722236354662,0.00384,69780.0,69779.0,0.51232226]
[1722236354843,0.11124308,69780.0,69779.0,0.51232226]
[1722236355240,0.11124308,69780.0,69779.0,0.74161726]
[1722236355444,0.11024308,69780.0,69779.0,0.82241726]
[1722236355667,0.00284,69780.0,69779.0,0.82241726]
[1722236355886,0.11029269,69780.0,69779.0,0.82241726]
[1722236356023,0.00284,69780.0,69779.0,0.82241726]
[1722236356229,0.08880186,69780.0,69779.0,0.82241726]
[1722236356425,0.11130542,69780.0,69779.0,0.82241726]
[1722236356648,0.02533405,69780.0,69779.0,0.82241726]
[1722236357452,0.02533405,69780.0,69779.0,0.81001726]
[1722236357744,0.13279826,69780.0,69779.0,0.73281726]
[1722236357944,0.11030421,69780.0,69779.0,0.73281726]
[1722236358560,0.00284,69780.0,69779.0,0.73281726]
[1722236359315,0.00284,69780.0,69779.0,0.014]
[1722236359316,0.203786,69780.0,69779.0,0.014]
[1722236359731,0.21272338,69780.0,69779.0,0.014]
[1722236360323,0.34171075,69780.0,69779.0,0.014]
[1722236360533,0.22706475,69780.0,69779.0,0.114647]
[1722236360729,0.09607738,69780.0,69779.0,0.114647]
[1722236360907,0.09707738,69780.0,69779.0,0.128647]
[1722236361114,0.12057257,69780.0,69779.0,0.026]
[1722236361495,0.24955994,69780.0,69779.0,0.026]
[1722236362129,0.09807738,69780.0,69779.0,0.026]
[1722236362309,0.22706475,69780.0,69779.0,0.026]
[1722236362544,0.09807738,69780.0,69779.0,0.026]
[1722236362722,0.09807738,69780.0,69779.0,0.140647]
[1722236362723,0.09707788,69780.0,69779.0,0.140647]
[1722236362904,0.09807788,69780.0,69779.0,0.369942]
[1722236363157,0.08914,69780.0,69779.0,0.140647]
[1722236363358,0.0167774,69780.0,69779.0,0.140647]
[1722236364160,0.145807,69780.0,69779.0,0.026]
[1722236364364,0.145807,69780.0,69779.0,0.140647]
[1722236365010,0.0167774,69780.0,69779.0,0.140647]
[1722236365214,0.0157774,69780.0,69779.0,0.026]
[1722236365429,0.038273,69780.0,69779.0,0.026]
[1722236365630,0.0167774,69780.0,69779.0,0.026]
[1722236365838,0.0167774,69780.0,69779.0,0.369942]
[1722236365839,0.01677783,69780.0,69779.0,0.369942]
[1722236366250,0.01677783,69780.0,69779.0,0.140647]
[1722236367035,0.01677783,69780.0,69779.0,0.026]
[1722236367454,0.13142383,69780.0,69779.0,0.026]
[1722236368032,0.20642383,69780.0,69779.0,0.026]
[1722236368258,0.52301161,69780.0,69779.0,0.026]
[1722236369127,0.52301163,69780.0,69779.0,0.026]
[1722236369525,0.50051585,69780.0,69779.0,0.026]
[1722236369930,0.27122385,69780.0,69779.0,0.026]
[1722236370750,0.27122385,69780.0,69779.0,0.109]
[1722236370978,0.41638201,69780.0,69779.0,0.109]
[1722236371186,0.41538201,69780.0,69779.0,0.109]
[1722236371387,0.27022385,69780.0,69779.0,0.109]
[1722236371585,0.41638201,69780.0,69779.0,0.109]
[1722236371841,0.41538201,69780.0,69779.0,0.109]
[1722236372042,0.41538201,69780.0,69779.0,0.026]
[1722236372272,0.41637916,69780.0,69779.0,0.026]
[1722236372420,0.27022392,69780.0,69779.0,0.026]
[1722236372764,0.261286,69780.0,69779.0,0.026]
[1722236372972,0.41537548,69780.0,69779.0,0.026]
[1722236373370,0.27122392,69780.0,69779.0,0.026]
[1722236373548,0.64566748,69780.0,69779.0,0.026]
[1722236374717,0.64566725,69780.0,69779.0,0.026]
[1722236375407,0.491578,69780.0,69779.0,0.026]
[1722236375534,0.64566368,69780.0,69779.0,0.026]
[1722236376952,0.66816049,69780.0,69779.0,0.026]
[1722236377159,1.01935778,69780.0,69779.0,0.026]
[1722236378474,0.99686097,69780.0,69779.0,0.026]
[1722236378670,0.99723016,69780.0,69779.0,0.026]
[1722236379165,1.09723016,69780.0,69779.0,0.026]
[1722236380751,0.86793816,69780.0,69779.0,0.026]
[1722236381107,1.09723016,69780.0,69779.0,0.026]
[1722236381308,1.09623016,69780.0,69779.0,0.026]
[1722236381530,1.09723016,69780.0,69779.0,0.026]
[1722236381732,1.08059906,69780.0,69779.0,0.012]
[1722236381930,1.11834002,69780.0,69779.0,0.012]
[1722236382337,0.89002864,69780.0,69779.0,0.02]
[1722236382542,0.89002864,69780.0,69779.0,0.008]
[1722236382543,0.88902864,69780.0,69779.0,0.008]
[1722236382905,0.88902864,69780.0,69779.0,0.01]
[1722236383095,1.11832064,69780.0,69779.0,0.01]
[1722236383311,0.578262,69776.0,69775.0,0.000924]
[1722236383538,0.58720093,69776.0,69775.0,0.000924]
[1722236384699,0.35789593,69776.0,69775.0,0.000924]
[1722236385076,0.12859092,69776.0,69775.0,0.087924]
[1722236385478,0.12859092,69776.0,69775.0,0.004924]
[1722236385937,0.12859092,69776.0,69775.0,0.009924]
[1722236387740,0.12859092,69776.0,69775.0,0.092924]
[1722236388081,0.01093892,69776.0,69775.0,0.092924]
[1722236388202,0.005,69776.0,69775.0,0.092924]
[1722236388403,0.01393825,69776.0,69775.0,0.092924]
[1722236389629,0.01293825,69776.0,69775.0,0.092924]
[1722236389834,0.50499525,69776.0,69775.0,0.009924]
[1722236390939,0.50399525,69776.0,69775.0,0.009924]
[1722236391315,0.495057,69776.0,69775.0,0.009924]
[1722236391527,0.50399576,69776.0,69775.0,0.009924]
[1722236391733,0.68826924,69776.0,69775.0,0.009924]
[1722236391891,0.496057,69776.0,69775.0,0.009924]
[1722236392095,0.68827099,69776.0,69775.0,0.009924]
[1722236392297,0.91757599,69776.0,69775.0,0.009924]
[1722236393895,0.91762141,69776.0,69775.0,0.009924]
[1722236394897,1.14688913,69776.0,69775.0,0.009924]
[1722236395651,1.001856,69776.0,69775.0,0.009924]
[1722236396057,0.772551,69776.0,69775.0,0.009924]
[1722236397393,1.100856,69776.0,69775.0,0.009924]
[1722236397572,1.101856,69776.0,69775.0,0.009924]
[1722236397769,1.12435459,69776.0,69775.0,0.009924]
[1722236397969,1.12466069,69776.0,69775.0,0.009924]
[1722236398809,1.58228508,69776.0,69775.0,0.009924]
[1722236399008,1.56078649,69776.0,69775.0,0.005924]
[1722236399136,1.56078649,69776.0,69775.0,0.000924]
[1722236399341,1.62925967,69776.0,69775.0,0.000924]
[1722236399660,1.62925967,69776.0,69775.0,0.002924]
[1722236399861,1.62825967,69776.0,69775.0,0.002924]
[1722236400066,1.62925967,69776.0,69775.0,0.002924]
[1722236400731,1.14982725,69776.0,69775.0,0.002924]
[1722236400941,1.18875357,69776.0,69775.0,0.002924]
[1722236401344,1.140887,69776.0,69775.0,0.002924]
[1722236401561,1.18919512,69776.0,69775.0,0.002924]
[1722236401963,1.21169557,69776.0,69775.0,0.002924]
[1722236402299,1.18919512,69776.0,69775.0,0.002924]
[1722236402938,1.18919512,69776.0,69775.0,0.000924]
[1722236403368,1.51429139,69776.0,69775.0,0.000924]
[1722236403571,1.47052176,69776.0,69775.0,0.000924]
[1722236403720,1.41752176,69776.0,69775.0,0.000924]
[1722236403924,1.41852176,69776.0,69775.0,0.000924]
[1722236404102,1.19421676,69776.0,69775.0,0.001924]
[1722236404444,1.51478257,69776.0,69775.0,0.001924]
[1722236404658,1.47652176,69776.0,69775.0,0.001924]
[1722236404943,1.46778774,69776.0,69775.0,0.001924]
[1722236405144,1.42352176,69776.0,69775.0,0.001924]
[1722236406154,1.20021676,69776.0,69775.0,0.002924]
[1722236406480,1.20032663,69776.0,69775.0,0.002924]
[1722236406616,1.20032663,69776.0,69754.0,0.0659]
[1722236406617,0.002,69755.0,69754.0,0.0659]
[1722236406820,0.002,69755.0,69754.0,0.492965]
[1722236407083,0.01093892,69755.0,69754.0,0.802642]
[1722236407989,0.01193892,69755.0,69754.0,0.816642]
[1722236408127,0.00993892,69755.0,69754.0,0.816642]
[1722236408332,0.01493892,69755.0,69754.0,0.0797]
[1722236408544,0.01493892,69755.0,69754.0,0.1627]
[1722236408767,0.01493892,69755.0,69754.0,0.28603304]
[1722236408978,0.01493892,69755.0,69754.0,0.36383304]
[1722236409235,0.01493892,69755.0,69754.0,0.59321004]
[1722236409412,0.09687554,69755.0,69754.0,0.83058704]
[1722236409772,0.09688119,69755.0,69754.0,0.83058704]
[1722236409967,0.11938206,69755.0,69754.0,0.83058704]
[1722236410136,0.11938206,69755.0,69754.0,0.74758704]
[1722236410137,0.09688119,69755.0,69754.0,0.74758704]
[1722236410303,0.09688119,69755.0,69754.0,0.83058704]
[1722236411310,0.09688119,69755.0,69754.0,0.37183304]
[1722236411506,0.10188119,69755.0,69754.0,0.105]
[1722236411966,0.10088119,69755.0,69754.0,0.105]
[1722236412342,0.10188119,69755.0,69754.0,0.022]
[1722236412544,0.12962592,69755.0,69754.0,0.022]
[1722236412752,0.01593752,69755.0,69754.0,0.022]
[1722236413342,0.007,69755.0,69754.0,0.022]
[1722236413546,0.01593762,69755.0,69754.0,0.022]
[1722236414190,0.09885897,69755.0,69754.0,0.082]
[1722236414320,0.10185897,69755.0,69754.0,0.082]
[1722236414523,0.01593762,69755.0,69754.0,0.196688]
[1722236414926,0.01593762,69755.0,69754.0,0.082]
[1722236415154,0.09685965,69755.0,69754.0,0.655442]
[1722236415493,0.09885976,69755.0,69754.0,0.655442]
[1722236415677,0.09885976,69755.0,69754.0,0.426065]
[1722236415828,0.007,69755.0,69754.0,0.426065]
[1722236416024,0.10186417,69755.0,69754.0,0.426065]
[1722236416232,0.10186417,69755.0,69754.0,0.196688]
[1722236416636,0.01593777,69755.0,69754.0,0.196688]
[1722236417436,0.0384402,69755.0,69754.0,0.196688]
[1722236417859,0.01593777,69755.0,69754.0,0.196688]
[1722236418237,0.01493777,69755.0,69754.0,0.136688]
[1722236418444,0.01593777,69755.0,69754.0,0.136688]
[1722236419184,0.01593746,69755.0,69754.0,0.136688]
[1722236419353,0.01293746,69755.0,69754.0,0.136688]
[1722236419994,0.01593746,69755.0,69754.0,0.136688]
[1722236420577,0.01293746,69755.0,69754.0,0.136688]
[1722236420758,0.01293746,69755.0,69754.0,0.366065]
[1722236421220,0.03544066,69755.0,69754.0,0.428565]
[1722236421400,0.01293746,69755.0,69754.0,0.428565]
[1722236421611,0.01293746,69755.0,69754.0,0.504365]
[1722236422191,0.004,69755.0,69754.0,0.504365]
[1722236422392,0.01293245,69755.0,69754.0,0.504365]
[1722236422595,0.01593245,69755.0,69754.0,0.504365]
[1722236422794,0.01593254,69755.0,69754.0,0.504365]
[1722236422991,0.01493254,69755.0,69754.0,0.504365]
[1722236423739,0.01493254,69755.0,69754.0,0.428565]
[1722236424140,0.01493254,69755.0,69754.0,0.199188]
[1722236424358,0.01493254,69755.0,69754.0,0.105]
[1722236424492,0.01493254,69755.0,69754.0,0.219688]
[1722236424693,0.01293254,69755.0,69754.0,0.449065]
[1722236425039,0.01593254,69755.0,69754.0,0.449065]
[1722236425337,0.01293069,69755.0,69754.0,0.449065]
[1722236425537,0.01593069,69755.0,69754.0,0.449065]
[1722236425844,0.01293069,69755.0,69754.0,0.449065]
[1722236426467,0.01093069,69755.0,69754.0,0.824142]
[1722236426853,0.01093069,69755.0,69754.0,1.053519]
[1722236428431,0.0109313,69755.0,69754.0,1.053519]
[1722236428632,0.11832378,69755.0,69754.0,1.053519]
[1722236428873,0.14082687,69755.0,69754.0,1.053519]
[1722236429045,0.11832378,69755.0,69754.0,1.053519]
[1722236431525,0.002,69755.0,69754.0,1.053519]
[1722236431727,0.10940249,69755.0,69754.0,1.053519]
[1722236431930,0.11833297,69755.0,69754.0,1.053519]
[1722236432133,0.01093048,69755.0,69754.0,1.053519]
[1722236432337,0.14083607,69755.0,69754.0,1.053519]
[1722236432532,0.11833294,69755.0,69754.0,1.053519]
[1722236433097,0.01093048,69755.0,69754.0,1.053519]
[1722236433831,0.01093048,69755.0,69754.0,0.971519]
[1722236434599,0.01093048,69755.0,69754.0,0.742142]
[1722236434744,0.003,69755.0,69754.0,0.743066]
[1722236434937,0.01093049,69755.0,69754.0,0.743066]
[1722236435340,0.01193049,69755.0,69754.0,0.743066]
[1722236435674,0.09113049,69755.0,69754.0,0.220612]
[1722236436195,0.11363373,69755.0,69754.0,0.449989]
[1722236436592,0.11363373,69755.0,69754.0,0.220612]
[1722236436793,0.11447373,69755.0,69754.0,0.220612]
[1722236436996,0.09197049,69755.0,69754.0,0.220612]
[1722236437397,0.09197049,69755.0,69754.0,0.449989]
[1722236437980,0.08204,69755.0,69754.0,0.449989]
[1722236438179,0.09197041,69755.0,69754.0,0.449989]
[1722236438580,0.01177041,69755.0,69754.0,0.739566]
[1722236439193,0.01677041,69755.0,69754.0,0.510189]
[1722236440491,0.03917816,69755.0,69754.0,0.510189]
[1722236440844,0.03917816,69755.0,69754.0,0.220612]
[1722236441061,0.28770496,69755.0,69754.0,0.105924]
[1722236441227,0.28770496,69755.0,69754.0,0.022924]
[1722236441228,0.73220992,69755.0,69754.0,0.022924]
[1722236441417,0.73120992,69755.0,69754.0,0.022924]
[1722236441796,0.76322676,69755.0,69754.0,0.022924]
[1722236441929,0.77215366,69755.0,69754.0,0.022924]
[1722236442731,1.00152766,69755.0,69754.0,0.022924]
[1722236443100,1.00062315,69755.0,69754.0,0.008924]
[1722236443302,0.99962315,69755.0,69754.0,0.008924]
[1722236443502,1.00062315,69755.0,69754.0,0.022924]
[1722236443657,1.00062315,69755.0,69754.0,0.014924]
[1722236443890,1.01543243,69755.0,69754.0,0.022924]
[1722236444456,0.57891101,69755.0,69754.0,0.105924]
[1722236444582,0.12276853,69755.0,69754.0,0.105924]
[1722236444779,0.12376853,69755.0,69754.0,0.105924]
[1722236445197,0.10126331,69755.0,69754.0,0.105924]
[1722236445804,0.02106331,69755.0,69754.0,0.449989]
[1722236446011,0.02206331,69755.0,69754.0,0.105924]
[1722236446211,0.02106331,69755.0,69754.0,0.105924]
[1722236446446,0.02206331,69755.0,69754.0,0.105924]
[1722236447043,0.02206331,69755.0,69754.0,0.220612]
[1722236447243,0.01806331,69755.0,69754.0,0.137612]
[1722236447442,0.02177848,69755.0,69754.0,0.022924]
[1722236448365,0.02077848,69755.0,69754.0,0.137612]
[1722236448537,0.04428355,69755.0,69754.0,0.137612]
[1722236448738,0.04428355,69755.0,69754.0,0.022924]
[1722236449660,0.15897055,69755.0,69754.0,0.022924]
[1722236449900,0.44413948,69755.0,69754.0,0.022924]
[1722236450614,0.44520169,69755.0,69754.0,0.022924]
[1722236451139,0.44531325,69755.0,69754.0,0.022924]
[1722236451584,0.44431325,69755.0,69754.0,0.022924]
[1722236451784,0.67468725,69755.0,69754.0,0.022924]
[1722236451987,0.73568725,69755.0,69754.0,0.022924]
[1722236452357,0.78384969,69755.0,69754.0,0.022924]
[1722236452569,0.78284969,69755.0,69754.0,0.022924]
[1722236452784,0.78384969,69755.0,69754.0,0.022924]
[1722236453286,0.74407973,69755.0,69754.0,0.022924]
[1722236453452,0.73582689,69755.0,69754.0,0.022924]
[1722236453656,0.78406206,69755.0,69754.0,0.022924]
[1722236453833,0.721575,69755.0,69754.0,0.022924]
[1722236454019,0.73482327,69755.0,69754.0,0.022924]
[1722236454219,0.73582327,69755.0,69754.0,0.022924]
[1722236455020,0.73482327,69755.0,69754.0,0.022924]
[1722236455233,0.96419727,69755.0,69754.0,0.022924]
[1722236455435,0.96519727,69755.0,69754.0,0.022924]
[1722236456380,0.96419727,69755.0,69754.0,0.022924]
[1722236456583,0.73582327,69755.0,69754.0,0.022924]
[1722236456743,0.8799612,69755.0,69754.0,0.022924]
[1722236456941,0.73491867,69755.0,69754.0,0.022924]
[1722236457121,0.88005622,69755.0,69754.0,0.022924]
[1722236457315,0.73491867,69755.0,69754.0,0.022924]
[1722236457525,0.88005622,69755.0,69754.0,0.022924]
[1722236457718,0.73491867,69755.0,69754.0,0.022924]
[1722236457932,0.73591867,69755.0,69754.0,0.022924]
[1722236458136,0.88105622,69755.0,69754.0,0.022924]
[1722236458341,0.73491867,69755.0,69754.0,0.022924]
[1722236458526,0.88104973,69755.0,69754.0,0.022924]
[1722236458731,0.73591867,69755.0,69754.0,0.022924]
[1722236459221,0.88104437,69755.0,69754.0,0.022924]
[1722236459399,0.73591867,69755.0,69754.0,0.022924]
[1722236460141,0.75846617,69755.0,69754.0,0.022924]
[1722236460703,0.74408012,69755.0,69754.0,0.022924]
[1722236460907,0.90344673,69755.0,69754.0,0.022924]
[1722236461112,0.73586106,69755.0,69754.0,0.022924]
[1722236461329,0.88094161,69755.0,69754.0,0.022924]
[1722236461533,0.73586106,69755.0,69754.0,0.022924]
[1722236461896,0.88092294,69755.0,69754.0,0.022924]
[1722236462198,0.73586106,69755.0,69754.0,0.022924]
[1722236462313,0.431201,69755.0,69754.0,0.022924]
[1722236462522,0.21599756,69755.0,69754.0,0.022924]
[1722236462731,0.10031056,69755.0,69754.0,0.022924]
[1722236462962,0.02101056,69755.0,69754.0,0.022924]
[1722236463159,0.02200498,69755.0,69754.0,0.022924]
[1722236463358,0.04350972,69755.0,69754.0,0.022924]
[1722236463530,0.04450972,69755.0,69754.0,0.022924]
[1722236464488,0.02200498,69755.0,69754.0,0.022924]
[1722236465033,0.02100498,69755.0,69754.0,0.366989]
[1722236465473,0.00684,69755.0,69754.0,0.366989]
[1722236465711,0.0213238,69755.0,69754.0,0.366989]
[1722236465918,0.0193238,69755.0,69754.0,0.366989]
[1722236467261,0.0193238,69755.0,69754.0,0.596366]
[1722236467469,0.04182817,69755.0,69754.0,0.596366]
[1722236467721,0.04182817,69755.0,69754.0,0.366989]
[1722236467927,0.04182817,69755.0,69754.0,0.596366]
[1722236468350,0.04382817,69755.0,69754.0,0.596366]
[1722236468559,0.0193238,69755.0,69754.0,0.677566]
[1722236468688,0.01739862,69755.0,69754.0,0.677566]
[1722236468890,0.01739862,69755.0,69754.0,0.967743]
[1722236469289,0.01739862,69755.0,69754.0,1.050743]
[1722236471271,0.33337262,69755.0,69754.0,0.022924]
[1722236471475,0.50875962,69755.0,69754.0,0.022924]
[1722236471827,0.50834364,69755.0,69754.0,0.022924]
[1722236472147,0.27896964,69755.0,69754.0,0.022924]
[1722236472506,0.50834364,69755.0,69754.0,0.022924]
[1722236472938,0.73771764,69755.0,69754.0,0.022924]
[1722236473147,0.50834364,69755.0,69754.0,0.022924]
[1722236473382,0.16428264,69755.0,69754.0,0.022924]
[1722236473525,0.27896964,69755.0,69754.0,0.022924]
[1722236474316,0.27929388,69755.0,69754.0,0.022924]
[1722236474858,0.27929309,69755.0,69754.0,0.022924]
[1722236475286,0.27829309,69755.0,69754.0,0.022924]
[1722236475453,0.27929309,69755.0,69754.0,0.022924]
[1722236475800,0.02230609,69755.0,69754.0,0.022924]
[1722236475937,0.01730609,69755.0,69754.0,0.366989]
[1722236476143,0.16966489,69755.0,69754.0,0.366989]
[1722236476561,0.16866489,69755.0,69754.0,0.825743]
[1722236476761,0.03981071,69755.0,69754.0,0.825743]
[1722236477181,0.01730609,69755.0,69754.0,0.825743]
[1722236478050,0.01754401,69755.0,69754.0,0.825743]
[1722236478242,0.01754404,69755.0,69754.0,0.825743]
[1722236479858,0.01754404,69755.0,69754.0,0.596366]
[1722236480436,0.04104779,69755.0,69754.0,0.366989]
[1722236480656,0.25101524,69755.0,69754.0,0.022924]
[1722236480795,0.25201524,69755.0,69754.0,0.022924]
[1722236480995,0.25097524,69755.0,69754.0,0.022924]
[1722236481192,0.25185077,69755.0,69754.0,0.137612]
[1722236481397,0.25085077,69755.0,69754.0,0.137612]
[1722236481738,0.25085202,69755.0,69754.0,0.137612]
[1722236482375,0.22434827,69755.0,69754.0,0.137612]
[1722236482553,0.22434827,69755.0,69754.0,0.022924]
[1722236482754,0.22934827,69755.0,69754.0,0.137612]
[1722236483320,0.09944922,69755.0,69754.0,0.137612]
[1722236483596,0.09944922,69755.0,69754.0,0.022924]
[1722236483764,0.10044922,69755.0,69754.0,0.022924]
[1722236484321,0.0859,69755.0,69754.0,0.022924]
[1722236484508,0.10020015,69755.0,69754.0,0.022924]
[1722236485507,0.09720015,69755.0,69754.0,0.137612]
[1722236485705,0.12170453,69755.0,69754.0,0.137612]
[1722236486109,0.10020015,69755.0,69754.0,0.022924]
[1722236486313,0.21488715,69755.0,69754.0,0.022924]
[1722236486655,0.21388715,69755.0,69754.0,0.022924]
[1722236486799,0.09920015,69755.0,69754.0,0.022924]
[1722236487193,0.21388715,69755.0,69754.0,0.022924]
[1722236487395,0.50526115,69755.0,69754.0,0.022924]
[1722236487619,0.50536459,69755.0,69754.0,0.022924]
[1722236487796,0.65044914,69755.0,69754.0,0.022924]
[1722236489316,0.67295452,69755.0,69754.0,0.022924]
[1722236489699,0.65044914,69755.0,69754.0,0.022924]
[1722236490302,0.50536459,69755.0,69754.0,0.022924]
[1722236490720,0.721335,69755.0,69754.0,0.022924]
[1722236490919,0.78357609,69755.0,69754.0,0.022924]
[1722236491437,0.78358144,69755.0,69754.0,0.022924]
[1722236491803,0.78158144,69755.0,69754.0,0.000924]
[1722236491974,0.78258144,69755.0,69754.0,0.011924]
[1722236492148,0.78358144,69755.0,69754.0,0.017924]
[1722236492349,0.78258144,69755.0,69754.0,0.011924]
[1722236492669,0.78158144,69755.0,69754.0,0.000924]
[1722236492831,0.80508682,69755.0,69754.0,0.007924]
[1722236493044,0.80524281,69755.0,69754.0,0.007924]
[1722236493864,0.80542873,69755.0,69754.0,0.007924]
[1722236494469,1.03480273,69755.0,69754.0,0.007924]
[1722236495612,1.03380273,69755.0,69754.0,0.007924]
[1722236496004,1.03480273,69755.0,69754.0,0.007924]
[1722236496749,1.01229735,69755.0,69754.0,0.007924]
[1722236497049,0.948709,69755.0,69754.0,0.007924]
[1722236497262,1.01305013,69755.0,69754.0,0.007924]
[1722236497389,1.01205013,69755.0,69754.0,0.007924]
[1722236497585,1.01305013,69755.0,69754.0,0.007924]
[1722236497843,1.11305013,69755.0,69754.0,0.007924]
[1722236498385,1.11205013,69755.0,69754.0,0.007924]
[1722236498554,1.11305013,69755.0,69754.0,0.007924]
[1722236499706,1.11205013,69755.0,69754.0,0.007924]
[1722236500181,1.135556,69755.0,69754.0,0.007924]
[1722236500343,1.11290902,69755.0,69754.0,0.007924]
[1722236501473,1.11290902,69755.0,69754.0,0.001527]
[1722236502625,1.11190902,69755.0,69754.0,0.001527]
[1722236503076,1.42752067,69755.0,69754.0,0.001527]
[1722236503273,1.42852067,69755.0,69754.0,0.001527]
[1722236503477,1.64087603,69755.0,69754.0,0.001527]
[1722236503675,1.42940827,69755.0,69754.0,0.001527]
[1722236504034,1.42940827,69755.0,69754.0,0.002451]
[1722236504650,1.42840827,69755.0,69754.0,0.002451]
[1722236504917,1.26411239,69755.0,69754.0,0.000924]
[1722236505152,1.20003427,69755.0,69754.0,0.000924]
[1722236505444,1.20003427,69755.0,69718.0,9e-05]
[1722236505445,0.002,69736.0,69718.0,9e-05]
[1722236505644,0.01560407,69735.0,69727.0,0.048]
[1722236505965,0.01560407,69735.0,69733.0,0.13502538]
[1722236506162,0.01660407,69735.0,69733.0,0.02030238]